Cogmind - Beta 10.1 *** ADVENTURER MODE // 2020.10.13 @ 20:52:07 Player: Mynzra Result: Destroyed by G-34 Mercenary with Small Laser Performance ------------- Evolutions (1) 500 Regions Visited (3) 600 Robots Destroyed (32) 160 Value Destroyed (681) 681 Prototype IDs (1) 20 Alien Tech Used (0) 0 Bonus (0) 0 TOTAL SCORE: 1961 Bonus ------- None Cogmind --------- Core Integrity 0/400 Matter 295/300 Energy 100/100 System Corruption 0% Temperature Cool (6) Movement Core (550) Ox10 Location -9/Mines Parts ------- > --- POWER (1) -------- (None) > --- PROPULSION (4) --- (None) > --- UTILITY (2) ------ Large Storage Unit Large Storage Unit > --- WEAPON (2) ------- (None) > --- INVENTORY (16) --- Heavy Ion Engine Heavy Ion Engine Light Nuclear Core Aluminum Leg Aluminum Leg Aluminum Leg Aluminum Leg Large Storage Unit Large Storage Unit Peak State ------------ > --- POWER ------------ Heavy Ion Engine > --- PROPULSION ------- Aluminum Leg Aluminum Leg Aluminum Leg Aluminum Leg > --- UTILITY ---------- Large Storage Unit Large Storage Unit > --- WEAPON ----------- Heavy EM Pulse Gun Heavy EM Pulse Gun > --- INVENTORY -------- Heavy Ion Engine Heavy Ion Engine Light Nuclear Core Aluminum Leg Aluminum Leg Aluminum Leg Grenade Launcher [Rating: 14] Favorites ----------- Power Heavy Ion Engine Engine Heavy Ion Engine Propulsion Aluminum Leg Leg Aluminum Leg Utility Large Storage Unit Storage Large Storage Unit Weapon Light Assault Rifle Energy Gun Small Laser Ballistic Gun Light Assault Rifle Launcher Grenade Launcher Build | -11 -10 -9 -9 ------- Run | Scr Mat Mat Min Slots Evolved 2 | . . 2 . Power . | . . . . Propulsion 2 | . . 2 . Utility . | . . . . Weapon . | . . . . Parts Attached 24 | . 7 14 3 Power 1 | . 1 . . Engine 1 | . 1 . . Core . | . . . . Reactor . | . . . . Propulsion 8 | . 2 6 . Treads . | . . . . Leg 8 | . 2 6 . Wheel . | . . . . Hover . | . . . . Flight . | . . . . Utility 5 | . 3 2 . Device . | . . . . Storage 5 | . 3 2 . Processor . | . . . . Hackware . | . . . . Protection . | . . . . Artifact . | . . . . Weapon 10 | . 1 6 3 Energy Gun 6 | . 1 4 1 Energy Cannon . | . . . . Ballistic Gun 2 | . . 1 1 Ballistic Cannon . | . . . . Launcher 2 | . . 1 1 Special Weapon . | . . . . Impact Weapon . | . . . . Slashing Weapon . | . . . . Piercing Weapon . | . . . . Special Melee Weapon . | . . . . Unidentified Prototypes 1 | . 1 . . Parts Lost 15 | . 3 6 6 Power 1 | . . 1 . Propulsion 4 | . . 1 3 Utility . | . . . . Weapon 10 | . 3 4 3 Highest Loss Streak 4 | . 2 3 4 Average Slot Usage (%) 89 | . 98 93 55 Engine 10 | . 14 10 . Leg 29 | . 28 42 19 Storage 25 | . 27 22 22 Energy Gun 11 | . 13 14 . Ballistic Gun 9 | . 13 2 6 Launcher 1 | . . . 6 Naked Turns . | . . . . Heaviest Build 46 | 9 44 46 36 Greatest Support 40 | 20 20 40 30 Greatest Overweight (x) 11 | . 2 1 11 Average Overweight (x) 1 | . 1 1 2 Largest Inventory Capacity 16 | . 16 16 16 Average Capacity 14 | . 13 16 16 Most Carried 13 | . 13 10 9 Average Carried 8 | . 9 7 9 Final Capacity 16 | 6 16 16 16 Final Carried 10 | 6 10 10 9 Class Distribution -------------------- 100% | Mutant Dominant Class ---------------- Mutant | -10/Materials Mutant | -9/Materials Mutant | -9/Mines Resources | -11 -10 -9 -9 ----------- Run | Scr Mat Mat Min Matter Collected 537 | 200 82 195 60 Remotely . | . . . . Salvage Created 885 | . 299 546 40 Parts 72 | . 20 43 9 Haulers Intercepted 2 | . 1 1 . Recyclers Shooed . | . . . . Parts Field Recycled . | . . . . Retrieved Matter . | . . . . Parts Self-Destructed . | . . . . Prevented . | . . . . Kills | -11 -10 -9 -9 ------- Run | Scr Mat Mat Min Combat Hostiles Destroyed 26 | . 8 12 6 Guns 18 | . 8 8 2 AOE 8 | . . 4 4 Classes Destroyed 8 | . 3 5 . Worker 1 | . . 1 . Builder 2 | . . 2 . Tunneler 1 | . . 1 . Hauler 2 | . 1 1 . Swarmer 14 | . 4 4 6 Grunt 10 | . 4 6 . Brawler 1 | . . 1 . Duelist 1 | . . 1 . Best Kill Streak 4 | . 2 4 3 Combat Bots Only 4 | . 2 4 3 Max Kills in Single Turn 3 | . 1 3 2 Gunslinging . | . . . . Exploded 2 | . . 2 2 Melee . | . . . . Uniques/NPCs Destroyed . | . . . . Combat | -11 -10 -9 -9 -------- Run | Scr Mat Mat Min Damage Taken 2056 | . 494 939 623 Core 525 | . 118 149 258 Absorbed by Shields . | . . . . Core Remaining (%) 76 | 100 52 . . Volleys Fired 91 | . 38 35 18 Largest 2 | . 2 2 2 Hottest 90 | . 65 90 50 Shots Fired 151 | . 68 63 20 Gun 145 | . 68 62 15 Cannon . | . . . . Launcher 6 | . . 1 5 Special . | . . . . Kinetic 70 | . 38 17 15 Thermal 27 | . 27 . . Explosive 6 | . . 1 5 Electromagnetic 48 | . 3 45 . Robot Hit Streak 20 | . 15 20 7 Robot Miss Streak 4 | . 4 2 2 Penetration Max . | . . . . Secondary Targets . | . . . . Shots Hit Robots 105 | . 48 43 14 Core Hits 53 | . 21 24 8 Critical Hits 1 | . 1 . . Critical Kills . | . . . . Critical Parts Destroyed 1 | . 1 . . Melee Attacks . | . . . . Impact . | . . . . Slashing . | . . . . Piercing . | . . . . Sneak Attacks . | . . . . Combat Hostiles . | . . . . Follow-up Attacks . | . . . . Damage Inflicted 1691 | . 450 902 339 Guns 1061 | . 446 541 74 Cannons . | . . . . Explosions 626 | . . 361 265 Melee . | . . . . Ramming 4 | . 4 . . Kinetic 393 | . 209 110 74 Thermal 471 | . 218 253 . Explosive 373 | . . 108 265 Electromagnetic 450 | . 19 431 . Impact . | . . . . Slashing . | . . . . Piercing . | . . . . Highest Corruption . | . . . . Average Corruption . | . . . . Corruption Purged . | . . . . Overload Shots . | . . . . Overflow Damage 18 | . . 18 . Projectiles . | . . . . Explosions 18 | . . 18 . Melee . | . . . . Knockbacks . | . . . . Impact . | . . . . Kinetic . | . . . . Secondary . | . . . . Self-Inflicted Damage 272 | . 1 205 66 Shots 8 | . . 5 3 Rammed 1 | . 1 . . Targets Rammed 2 | . 2 . . Kicked 1 | . 1 . . Crushed . | . . . . Highest Temperature 108 | . 74 108 7 Average Temperature 25 | . 22 30 4 Received Heat Transfer 732 | . 183 198 351 Siege Activations . | . . . . Robots Corrupted . | . . . . Combat Hostiles . | . . . . Parts Fried 2 | . . 2 . Impact Corruptions . | . . . . Robots Melted . | . . . . Combat Hostiles . | . . . . Parts Melted . | . . . . Heat Transferred 750 | . 500 250 . Parts Sabotaged . | . . . . Parts Stolen . | . . . . Parts Stripped . | . . . . Power Chain Reactions 3 | . . 3 . Missiles Intercepted . | . . . . Alert | -11 -10 -9 -9 ------- Run | Scr Mat Mat Min Peak Influence 374 | . 115 374 282 Initial 119 | . . 9 119 Average 110 | . 44 185 237 Maximum Alert Level 1 | . . 1 1 Low Security (%) 74 | . 100 61 4 Level 1 25 | . . 38 96 Level 2 . | . . . . Level 3 . | . . . . Level 4 . | . . . . Level 5 . | . . . . High Security . | . . . . Max Security . | . . . . Squads Dispatched 4 | . 1 3 . Investigation 2 | . 1 1 . Extermination . | . . . . Reinforcement 2 | . . 2 . Assault . | . . . . Garrison . | . . . . Intercept . | . . . . Construction Impeded . | . . . . Haulers Reinforced . | . . . . Stealth | -11 -10 -9 -9 --------- Run | Scr Mat Mat Min Distress Signals 5 | . 2 3 . Communications Jammed . | . . . . Distress Signals . | . . . . Times Spotted 54 | . 23 23 8 Peak Tracking Total 7 | . 6 7 3 Tactical Retreats 3 | . 1 1 1 Traps | -11 -10 -9 -9 ------- Run | Scr Mat Mat Min Traps Triggered . | . . . . Indirectly . | . . . . Trap Hack Attempts . | . . . . Triggered . | . . . . Disarmed . | . . . . Reprogrammed . | . . . . Reused . | . . . . Traps Extracted . | . . . . Installed . | . . . . Triggered . | . . . . Machines | -11 -10 -9 -9 ---------- Run | Scr Mat Mat Min Machines Disabled 7 | . . 5 2 Max in Single Turn 3 | . . 3 2 Machines Sabotaged . | . . . . Garrisons Compromised . | . . . . Overloaded Fab Kills . | . . . . Fab Network Shutdowns . | . . . . Hacking | -11 -10 -9 -9 --------- Run | Scr Mat Mat Min Machines Accessed 9 | . 7 2 . Terminals 9 | . 7 2 . Fabricators . | . . . . Repair Stations . | . . . . Recycling Units . | . . . . Scanalyzers . | . . . . Garrison Access . | . . . . Total Hacks 36 | . 30 6 . Successful 22 | . 20 2 . Failed 14 | . 10 4 . Catastrophic 3 | . 3 . . Database Lockouts . | . . . . Manual 20 | . 17 3 . Terminals 36 | . 30 6 . Fabricators . | . . . . Repair Stations . | . . . . Recycling Units . | . . . . Scanalyzers . | . . . . Garrison Access . | . . . . Terminal Hacks 12 | . 11 1 . Record 5 | . 5 . . Part Schematic 1 | . 1 . . Robot Analysis 1 | . . 1 . Level Access Points 1 | . 1 . . Emergency Access Points 2 | . 2 . . Alert Level 1 | . 1 . . Unreport Threat 1 | . 1 . . Fabricator Hacks . | . . . . Repair Station Hacks . | . . . . Recycling Unit Hacks . | . . . . Scanalyzer . | . . . . Garrison Access Hacks . | . . . . Unauthorized Hacks 10 | . 9 1 . Terminals 10 | . 9 1 . Assimilate 1 | . 1 . . Botnet 7 | . 6 1 . Disrupt 1 | . 1 . . Operators 1 | . 1 . . Fabricators . | . . . . Repair Stations . | . . . . Recycling Units . | . . . . Scanalyzers . | . . . . Garrison Access . | . . . . Data Cores Recovered . | . . . . Used . | . . . . Hacking Detections 9 | . 7 2 . Full Trace Events 2 | . 1 1 . Feedback Events . | . . . . Feedback Blocked . | . . . . Robot Schematics Acquired . | . . . . Robots Built . | . . . . Matter . | . . . . Time . | . . . . Total Robot Build Rating . | . . . . Part Schematics Acquired 1 | . 1 . . Parts Built . | . . . . Matter . | . . . . Time . | . . . . Total Part Build Rating . | . . . . Parts Repaired . | . . . . Time . | . . . . Parts Recycled . | . . . . Recycled Matter . | . . . . Retrieved Matter . | . . . . Retrieved Components . | . . . . Parts Scanalyzed . | . . . . Part Schematics Acquired . | . . . . Parts Damaged . | . . . . Bothacking | -11 -10 -9 -9 ------------ Run | Scr Mat Mat Min Used RIF Installer . | . . . . Robots Hacked . | . . . . Non-combat . | . . . . Combat . | . . . . Robot Hacks Applied . | . . . . Relay Couplers Released . | . . . . Robots Rewired . | . . . . Allies Hacked . | . . . . Hacks Repelled . | . . . . Allies | -11 -10 -9 -9 -------- Run | Scr Mat Mat Min Total Allies . | . . . . Largest Group . | . . . . Highest-Rated Group . | . . . . Highest-Rated Ally . | . . . . Total Orders . | . . . . Ally Attacks . | . . . . Total Damage . | . . . . Kills . | . . . . Allies Corrupted . | . . . . Allies Melted . | . . . . Intel | -11 -10 -9 -9 ------- Run | Scr Mat Mat Min Robot Analysis Total 1 | . . 1 . Derelict Logs Recovered 2 | . . . 2 Drone Launches . | . . . . Drone Recoveries . | . . . . Exploration | -11 -10 -9 -9 ------------- Run | Scr Mat Mat Min Turns Passed 1543 | . 920 348 275 Spaces Moved 752 | 1 488 149 114 Core 14 | . . . 14 Treads . | . . . . Legs 738 | 1 488 149 100 Wheels . | . . . . Hover . | . . . . Flight . | . . . . Fastest Speed 120 | 120 120 150 150 Average Speed 163 | 120 158 150 202 Slowest Speed 600 | 120 180 150 600 Overloaded Moves . | . . . . Propulsion Burnouts . | . . . . Robots Hopped . | . . . . Cave-ins Triggered . | . . . . Exploration Rate (%) 35 | 1 90 19 30 Regions Visited 3 Branch Regions 1 Pre-discovered Areas . | . . . . Known Exits Taken 1 | . 1 . . Unknown Exits Taken 2 | 1 . 1 . Scrap Searched 1 | . . . 1 Spaces Dug . | . . . . Terrain Destroyed 50 | . . 21 29 Melee . | . . . . Projectile . | . . . . AOE 50 | . . 21 29 Terrain Rammed . | . . . . Walls Destroyed . | . . . . Machines Disabled . | . . . . Actions | -11 -10 -9 -9 --------- Run | Scr Mat Mat Min Total 924 | . 576 207 141 Wait 36 | . 21 9 6 Move 749 | . 487 148 114 Hop . | . . . . Pick Up 12 | . 11 1 . Fast Attach 4 | . 1 1 2 Attach 8 | . 1 6 1 Detach . | . . . . Swap 12 | . 5 7 . Drop 10 | . 10 . . Fire 91 | . 38 35 18 Melee . | . . . . Ram . | . . . . Kick 2 | . 2 . . Crush . | . . . . Escape Stasis . | . . . . Rewire . | . . . . Trap . | . . . . Miscellaneous . | . . . . Route ------- -11/Scrapyard -10/Materials (discovered 5 exits: *Mat x3 / [*Min x2]) -9/Materials -9/Mines History --------- Turn | Location | Event 1 | -11/Scrapyard | Discovered new exit (range 0) 1 | -11/Scrapyard | Entered Materials 249 | -10/Materials | Discovered new exit (range 9) 301 | -10/Materials | Build established: Mutant 442 | -10/Materials | Discovered new exit (range 14) 619 | -10/Materials | Discovered new exit (range 16) 641 | -10/Materials | Identified exit to Materials 646 | -10/Materials | Discovered new exit (range 6) 921 | -10/Materials | Entered another Materials area 921 | -9/Materials | Evolved 2 slots: Propulsion x2 1245 | -9/Materials | Discovered new exit (range 7) 1269 | -9/Materials | Entered Mines 1297 | -9/Mines | Lost 3 parts (1p1n1w) 1321 | -9/Mines | Learned 2 Materials zone layouts 1457 | -9/Mines | Core integrity fell below 50% 1492 | -9/Mines | Core integrity fell below 20% 1495 | -9/Mines | Lost 4 parts (2n2w) 1544 | -9/Mines | Destroyed by G-34 Mercenary with Small Laser Last Messages --------------- 01395_ U-05 Engineer lays Concrete. 01396_ U-05 Engineer builds a Wall. 01401_ U-05 Engineer lays Concrete. 01405_ U-05 Engineer builds a Wall. 01408_ U-05 Engineer lays Concrete. 01409_ Acquired derelict log, extracted data. Data stored: Storage entrances (x1). 01434_ Grenade Launcher destroyed. 01434_ K-01 Serf collects debris. 01452_ Aluminum Leg destroyed. 01458_ Lgt. Assault Rifle destroyed. 01464_ Aluminum Leg destroyed. 01476_ Searching scrap... 01476_ Found Hammer. 01476_ Found EM Pulse Gun. 01476_ Found 27 Matter. 01477_ Acquired 27 matter. 01487_ Acquired EM Pulse Gun. 01503_ EM Pulse Gun destroyed. 01527_ U-05 Engineer lays Concrete. Map ----- +----------------------------------------------------+ | ?????????????????????????????? | | ?????????????????????????????? | | ?????????????????????????????? | | ?????????????????????????????? | | ?????????????????????????????? | | ?????????????????????????????? | | ?????????????????????????????? | | ?????????????????????????????? | | ?????????????????????????????? | | ?????????????????????????????? | | ?????????????????????????????? | | ?????????????????????????"???? | | ????????????????????????? ???? | | ????????????????????????? ???? | | ????????????????????????? ???? | | ????????????????????????? ???? | | ????????????????????????? ???? | | ????????????????????????# #??? | | ????????????????????????# #??? | | ????????????????????????# #??? | | ????????????????????????# #??? | | ????????????????????????# #??? | | ????????????????????????# #??? | | ????????????????????????# #??? | | ????????????????????????# #??? | | ????????????????????????#@#??? | | ????????????????????????# #??? | | ??????????????###???????# #??? | | ?????????????## #??????# #??? | | ?????????????# ??????# #??? | | ?????????????# #?????# #??? | | ?????????????# ##???# #??? | | ??????????????# ##??#g#??? | | ????? ????????# #### #??? | | ???? #### #??? | | ???? / #??? | | ???? #??? | | ???? ####### ### ##??? | | ??????????????????# #?####???? | | ??????????????????# #????????? | | ????????????###???# #????????? | | ?????#####?# ##??# #????????? | | ????## ## #??# #????????? | | ???## #??# #????????? | | ???# #???# #????????? | | ???# #????# #????????? | | #### ##???# #????????? | | #???# #????????? | | """ #???# #????????? | | #### """ ###### #????????? | +----------------------------------------------------+ Best States ------------- Heat Dissipation 28 Energy Generation 14 Energy Capacity 280 Matter Stores 300 Matter Capacity 300 Sight Range 16 Terrain Scan Density 10 Resistance: KI 20 Resistance: TH 20 Resistance: EX 20 Resistance: EM 20 Resistance: I 20 Resistance: S 20 Resistance: P 20 Evasion (%) 40 Offensive Hacking 10 Item Schematics ----------------- Lrg. Storage Unit | -10/Materials | Hacked Robot Schematics ------------------ None Fabricated ------------ Nothing Alien Tech Used ----------------- None Achievements -------------- None Challenges ------------ None Game ------ Seed HeatCannonUnit Manual? 0 Play Time 00:23:57 Cumulative 73.1 hours Start 2020.10.08 @ 13:06:48 End 2020.10.13 @ 20:52:07 Sessions 3 Manual Loads 0 Difficulty Adventurer Special Mode None Game No. 79 Rogue 56 Adventurer 19 Explorer 4 Win Type - Total 0 Types 0/0/0/0/0/0/0/0/0 Lore% 30 Gallery% 40 Achievement% 33 Wizard Run 0 Options --------- ASCII 0 Keyboard 0 Movement Mouse Keybinds 0 Fullscreen 0 Font 12/Smallcaps Map View 83x54 Tactical HUD 1 Map Filters NONE Filters NONE Steam 1 RUN: d240e3de-3b6e-4ba0-a06b-e9a04ede0c90